{"text_format":"3","workbook":"xlsx","n_sheets":13,"sheets":["Janvāris","Februāris","Marts","Aprīlis","Maijs","Jūnijs","Jūlijs","August","Septembris","Oktobris","Novembris","Decembris","Kopsavilkums no gada sākuma"],"not_rendered":{"charts":1,"defined_names":13},"read":"whole","date_system":"1900"}

{"sheet":"Janvāris","index":0,"n_rows":9,"n_cols":14,"rows_kept":9,"merged":[[3,0,4,0],[6,0,7,0]]}
["JANVĀRIS"]
["Pārdošana tiešsaistē",null,"Izsoles\nID","Pozīcijas apraksts","Pirkuma cena","Pārdošanas cena","Interneta maksājumi","PayPal\nmaksājumi","Kredītkartes\nmaksājumi","Piegādes izdevumi","Maksa par\npiegādi","Peļņa/zaudējumi no pārdošanas","Peļņa/zaudējumi no pārvadājumiem","Kopējā peļņa/zaudējumi"]
["Gads",null,"TS001","Pozīcija 1",{"v":5,"d":"5.00 €"},{"v":4,"d":"4.00 €"},{"v":2,"d":"2.00 €"},{"v":1.5,"d":"1.50 €"},{"v":0,"d":"0.00 €"},{"v":4,"d":"4.00 €"},{"v":2,"d":"2.00 €"},{"$f":"IFERROR(JanvārisPārdošana[Pārdošanas cena]-(JanvārisPārdošana[Pirkuma cena]+JanvārisPārdošana[Interneta maksājumi]+JanvārisPārdošana[PayPal\nmaksājumi]+JanvārisPārdošana[Kredītkartes\nmaksājumi]),\"\")","v":{"v":-4.5,"d":"-4.50 €"}},{"$f":"JanvārisPārdošana[Piegādes izdevumi]-JanvārisPārdošana[Maksa par\npiegādi]","v":{"v":2,"d":"2.00 €"}},{"$f":"JanvārisPārdošana[Peļņa/zaudējumi no pārdošanas]+JanvārisPārdošana[Peļņa/zaudējumi no pārvadājumiem]","v":{"v":-2.5,"d":"-2.50 €"}}]
[2012,null,"TP004","Pozīcija 2",{"v":2,"d":"2.00 €"},{"v":30,"d":"30.00 €"},{"v":0.5,"d":"0.50 €"},{"v":0.5,"d":"0.50 €"},null,{"v":4,"d":"4.00 €"},{"v":5.5,"d":"5.50 €"},{"$f":"IFERROR(JanvārisPārdošana[Pārdošanas cena]-(JanvārisPārdošana[Pirkuma cena]+JanvārisPārdošana[Interneta maksājumi]+JanvārisPārdošana[PayPal\nmaksājumi]+JanvārisPārdošana[Kredītkartes\nmaksājumi]),\"\")","v":{"v":27,"d":"27.00 €"}},{"$f":"JanvārisPārdošana[Piegādes izdevumi]-JanvārisPārdošana[Maksa par\npiegādi]","v":{"v":-1.5,"d":"-1.50 €"}},{"$f":"JanvārisPārdošana[Peļņa/zaudējumi no pārdošanas]+JanvārisPārdošana[Peļņa/zaudējumi no pārvadājumiem]","v":{"v":25.5,"d":"25.50 €"}}]
[null,null,"RS99","Pozīcija 3",{"v":17,"d":"17.00 €"},{"v":23,"d":"23.00 €"},{"v":2,"d":"2.00 €"},null,{"v":2,"d":"2.00 €"},{"v":3,"d":"3.00 €"},{"v":2,"d":"2.00 €"},{"$f":"IFERROR(JanvārisPārdošana[Pārdošanas cena]-(JanvārisPārdošana[Pirkuma cena]+JanvārisPārdošana[Interneta maksājumi]+JanvārisPārdošana[PayPal\nmaksājumi]+JanvārisPārdošana[Kredītkartes\nmaksājumi]),\"\")","v":{"v":2,"d":"2.00 €"}},{"$f":"JanvārisPārdošana[Piegādes izdevumi]-JanvārisPārdošana[Maksa par\npiegādi]","v":{"v":1,"d":"1.00 €"}},{"$f":"JanvārisPārdošana[Peļņa/zaudējumi no pārdošanas]+JanvārisPārdošana[Peļņa/zaudējumi no pārvadājumiem]","v":{"v":3,"d":"3.00 €"}}]
["Kopējā peļņa/zaudējumi",null,"ST001","Pozīcija 4",{"v":120,"d":"120.00 €"},{"v":180,"d":"180.00 €"},{"v":2,"d":"2.00 €"},{"v":1.5,"d":"1.50 €"},null,{"v":3,"d":"3.00 €"},{"v":2,"d":"2.00 €"},{"$f":"IFERROR(JanvārisPārdošana[Pārdošanas cena]-(JanvārisPārdošana[Pirkuma cena]+JanvārisPārdošana[Interneta maksājumi]+JanvārisPārdošana[PayPal\nmaksājumi]+JanvārisPārdošana[Kredītkartes\nmaksājumi]),\"\")","v":{"v":56.5,"d":"56.50 €"}},{"$f":"JanvārisPārdošana[Piegādes izdevumi]-JanvārisPārdošana[Maksa par\npiegādi]","v":{"v":1,"d":"1.00 €"}},{"$f":"JanvārisPārdošana[Peļņa/zaudējumi no pārdošanas]+JanvārisPārdošana[Peļņa/zaudējumi no pārvadājumiem]","v":{"v":57.5,"d":"57.50 €"}}]
[{"$f":"JanvārisPārdošana[[#Totals],[Kopējā peļņa/zaudējumi]]","v":{"v":89,"d":"89.00 €"}},null,"ST001","Pozīcija 5",{"v":10,"d":"10.00 €"},{"v":12,"d":"12.00 €"},{"v":2,"d":"2.00 €"},{"v":1.5,"d":"1.50 €"},null,{"v":14,"d":"14.00 €"},{"v":7,"d":"7.00 €"},{"$f":"IFERROR(JanvārisPārdošana[Pārdošanas cena]-(JanvārisPārdošana[Pirkuma cena]+JanvārisPārdošana[Interneta maksājumi]+JanvārisPārdošana[PayPal\nmaksājumi]+JanvārisPārdošana[Kredītkartes\nmaksājumi]),\"\")","v":{"v":-1.5,"d":"-1.50 €"}},{"$f":"JanvārisPārdošana[Piegādes izdevumi]-JanvārisPārdošana[Maksa par\npiegādi]","v":{"v":7,"d":"7.00 €"}},{"$f":"JanvārisPārdošana[Peļņa/zaudējumi no pārdošanas]+JanvārisPārdošana[Peļņa/zaudējumi no pārvadājumiem]","v":{"v":5.5,"d":"5.50 €"}}]
[null,null," Kopā",{"$f":"\"Pārdotie vienumi: \"&SUBTOTAL(103,JanvārisPārdošana[Pozīcijas apraksts])","v":"Pārdotie vienumi: 5"},{"$f":"SUBTOTAL(109,JanvārisPārdošana[Pirkuma cena])","v":{"v":154,"d":"154.00 €"}},{"$f":"SUBTOTAL(109,JanvārisPārdošana[Pārdošanas cena])","v":{"v":249,"d":"249.00 €"}},{"$f":"SUBTOTAL(109,JanvārisPārdošana[Interneta maksājumi])","v":{"v":8.5,"d":"8.50 €"}},{"$f":"SUBTOTAL(109,JanvārisPārdošana[PayPal\nmaksājumi])","v":{"v":5,"d":"5.00 €"}},{"$f":"SUBTOTAL(109,JanvārisPārdošana[Kredītkartes\nmaksājumi])","v":{"v":2,"d":"2.00 €"}},{"$f":"SUBTOTAL(109,JanvārisPārdošana[Piegādes izdevumi])","v":{"v":28,"d":"28.00 €"}},{"$f":"SUBTOTAL(109,JanvārisPārdošana[Maksa par\npiegādi])","v":{"v":18.5,"d":"18.50 €"}},{"$f":"SUBTOTAL(109,JanvārisPārdošana[Peļņa/zaudējumi no pārdošanas])","v":{"v":79.5,"d":"79.50 €"}},{"$f":"SUBTOTAL(109,JanvārisPārdošana[Peļņa/zaudējumi no pārvadājumiem])","v":{"v":9.5,"d":"9.50 €"}},{"$f":"SUBTOTAL(109,JanvārisPārdošana[Kopējā peļņa/zaudējumi])","v":{"v":89,"d":"89.00 €"}}]
["Peļņas/zaudējumu tendence"]

{"sheet":"Februāris","index":1,"n_rows":9,"n_cols":14,"rows_kept":9,"merged":[[3,0,4,0],[6,0,7,0]]}
["FEBRUĀRIS"]
["Pārdošana tiešsaistē",null,"Izsoles\nID","Pozīcijas apraksts","Pirkuma cena","Pārdošanas cena","Interneta maksājumi","PayPal\nmaksājumi","Kredītkartes\nmaksājumi","Piegādes izdevumi","Maksa par\npiegādi","Peļņa/zaudējumi no pārdošanas","Peļņa/zaudējumi no pārvadājumiem","Kopējā peļņa/zaudējumi"]
["Gads",null,"TS020","Pozīcija 1",{"v":10,"d":"10.00 €"},{"v":175,"d":"175.00 €"},{"v":3,"d":"3.00 €"},{"v":1.5,"d":"1.50 €"},{"v":0,"d":"0.00 €"},{"v":7,"d":"7.00 €"},{"v":5,"d":"5.00 €"},{"$f":"IFERROR(FebruārisPārdošana[Pārdošanas cena]-(FebruārisPārdošana[Pirkuma cena]+FebruārisPārdošana[Interneta maksājumi]+FebruārisPārdošana[PayPal\nmaksājumi]+FebruārisPārdošana[Kredītkartes\nmaksājumi]),\"\")","v":{"v":160.5,"d":"160.50 €"}},{"$f":"FebruārisPārdošana[Piegādes izdevumi]-FebruārisPārdošana[Maksa par\npiegādi]","v":{"v":2,"d":"2.00 €"}},{"$f":"FebruārisPārdošana[Peļņa/zaudējumi no pārdošanas]+FebruārisPārdošana[Peļņa/zaudējumi no pārvadājumiem]","v":{"v":162.5,"d":"162.50 €"}}]
[{"$f":"PārdošanasGads","v":2012},null,"TS021","Pozīcija 2",{"v":32,"d":"32.00 €"},{"v":100,"d":"100.00 €"},{"v":3,"d":"3.00 €"},null,{"v":3.2,"d":"3.20 €"},{"v":20,"d":"20.00 €"},{"v":13,"d":"13.00 €"},{"$f":"IFERROR(FebruārisPārdošana[Pārdošanas cena]-(FebruārisPārdošana[Pirkuma cena]+FebruārisPārdošana[Interneta maksājumi]+FebruārisPārdošana[PayPal\nmaksājumi]+FebruārisPārdošana[Kredītkartes\nmaksājumi]),\"\")","v":{"v":61.8,"d":"61.80 €"}},{"$f":"FebruārisPārdošana[Piegādes izdevumi]-FebruārisPārdošana[Maksa par\npiegādi]","v":{"v":7,"d":"7.00 €"}},{"$f":"FebruārisPārdošana[Peļņa/zaudējumi no pārdošanas]+FebruārisPārdošana[Peļņa/zaudējumi no pārvadājumiem]","v":{"v":68.8,"d":"68.80 €"}}]
[null,null,"TS022","Pozīcija 3",{"v":3,"d":"3.00 €"},{"v":7,"d":"7.00 €"},{"v":2,"d":"2.00 €"},null,{"v":2,"d":"2.00 €"},{"v":0.5,"d":"0.50 €"},{"v":1.2,"d":"1.20 €"},{"$f":"IFERROR(FebruārisPārdošana[Pārdošanas cena]-(FebruārisPārdošana[Pirkuma cena]+FebruārisPārdošana[Interneta maksājumi]+FebruārisPārdošana[PayPal\nmaksājumi]+FebruārisPārdošana[Kredītkartes\nmaksājumi]),\"\")","v":{"v":0,"d":"0.00 €"}},{"$f":"FebruārisPārdošana[Piegādes izdevumi]-FebruārisPārdošana[Maksa par\npiegādi]","v":{"v":-0.7,"d":"-0.70 €"}},{"$f":"FebruārisPārdošana[Peļņa/zaudējumi no pārdošanas]+FebruārisPārdošana[Peļņa/zaudējumi no pārvadājumiem]","v":{"v":-0.7,"d":"-0.70 €"}}]
["Kopējā peļņa/zaudējumi",null,"TS023","Pozīcija 4",{"v":22,"d":"22.00 €"},{"v":18,"d":"18.00 €"},{"v":3,"d":"3.00 €"},{"v":1.5,"d":"1.50 €"},null,{"v":7,"d":"7.00 €"},{"v":10,"d":"10.00 €"},{"$f":"IFERROR(FebruārisPārdošana[Pārdošanas cena]-(FebruārisPārdošana[Pirkuma cena]+FebruārisPārdošana[Interneta maksājumi]+FebruārisPārdošana[PayPal\nmaksājumi]+FebruārisPārdošana[Kredītkartes\nmaksājumi]),\"\")","v":{"v":-8.5,"d":"-8.50 €"}},{"$f":"FebruārisPārdošana[Piegādes izdevumi]-FebruārisPārdošana[Maksa par\npiegādi]","v":{"v":-3,"d":"-3.00 €"}},{"$f":"FebruārisPārdošana[Peļņa/zaudējumi no pārdošanas]+FebruārisPārdošana[Peļņa/zaudējumi no pārvadājumiem]","v":{"v":-11.5,"d":"-11.50 €"}}]
[{"$f":"FebruārisPārdošana[[#Totals],[Kopējā peļņa/zaudējumi]]","v":{"v":224.60000000000002,"d":"224.60 €"}},null,"TS024","Pozīcija 5",{"v":10,"d":"10.00 €"},{"v":12,"d":"12.00 €"},{"v":2,"d":"2.00 €"},{"v":1.5,"d":"1.50 €"},null,{"v":14,"d":"14.00 €"},{"v":7,"d":"7.00 €"},{"$f":"IFERROR(FebruārisPārdošana[Pārdošanas cena]-(FebruārisPārdošana[Pirkuma cena]+FebruārisPārdošana[Interneta maksājumi]+FebruārisPārdošana[PayPal\nmaksājumi]+FebruārisPārdošana[Kredītkartes\nmaksājumi]),\"\")","v":{"v":-1.5,"d":"-1.50 €"}},{"$f":"FebruārisPārdošana[Piegādes izdevumi]-FebruārisPārdošana[Maksa par\npiegādi]","v":{"v":7,"d":"7.00 €"}},{"$f":"FebruārisPārdošana[Peļņa/zaudējumi no pārdošanas]+FebruārisPārdošana[Peļņa/zaudējumi no pārvadājumiem]","v":{"v":5.5,"d":"5.50 €"}}]
[null,null," Kopā",{"$f":"\"Pārdotie vienumi: \"&SUBTOTAL(103,FebruārisPārdošana[Pozīcijas apraksts])","v":"Pārdotie vienumi: 5"},{"$f":"SUBTOTAL(109,FebruārisPārdošana[Pirkuma cena])","v":{"v":77,"d":"77.00 €"}},{"$f":"SUBTOTAL(109,FebruārisPārdošana[Pārdošanas cena])","v":{"v":312,"d":"312.00 €"}},{"$f":"SUBTOTAL(109,FebruārisPārdošana[Interneta maksājumi])","v":{"v":13,"d":"13.00 €"}},{"$f":"SUBTOTAL(109,FebruārisPārdošana[PayPal\nmaksājumi])","v":{"v":4.5,"d":"4.50 €"}},{"$f":"SUBTOTAL(109,FebruārisPārdošana[Kredītkartes\nmaksājumi])","v":{"v":5.2,"d":"5.20 €"}},{"$f":"SUBTOTAL(109,FebruārisPārdošana[Piegādes izdevumi])","v":{"v":48.5,"d":"48.50 €"}},{"$f":"SUBTOTAL(109,FebruārisPārdošana[Maksa par\npiegādi])","v":{"v":36.2,"d":"36.20 €"}},{"$f":"SUBTOTAL(109,FebruārisPārdošana[Peļņa/zaudējumi no pārdošanas])","v":{"v":212.3,"d":"212.30 €"}},{"$f":"SUBTOTAL(109,FebruārisPārdošana[Peļņa/zaudējumi no pārvadājumiem])","v":{"v":12.3,"d":"12.30 €"}},{"$f":"SUBTOTAL(109,FebruārisPārdošana[Kopējā peļņa/zaudējumi])","v":{"v":224.60000000000002,"d":"224.60 €"}}]
["Peļņas/zaudējumu tendence"]

{"sheet":"Marts","index":2,"n_rows":9,"n_cols":14,"rows_kept":9,"merged":[[3,0,4,0],[6,0,7,0]]}
["MARTS"]
["Pārdošana tiešsaistē",null,"Izsoles\nID","Pozīcijas apraksts","Pirkuma cena","Pārdošanas cena","Interneta maksājumi","PayPal\nmaksājumi","Kredītkartes\nmaksājumi","Piegādes izdevumi","Maksa par\npiegādi","Peļņa/zaudējumi no pārdošanas","Peļņa/zaudējumi no pārvadājumiem","Kopējā peļņa/zaudējumi"]
["Gads",{"$nulls":10},{"$f":"IFERROR(MartsPārdošana[Pārdošanas cena]-(MartsPārdošana[Pirkuma cena]+MartsPārdošana[Interneta maksājumi]+MartsPārdošana[PayPal\nmaksājumi]+MartsPārdošana[Kredītkartes\nmaksājumi]),\"\")","v":{"v":0,"d":"0.00 €"}},{"$f":"MartsPārdošana[Piegādes izdevumi]-MartsPārdošana[Maksa par\npiegādi]","v":{"v":0,"d":"0.00 €"}},{"$f":"MartsPārdošana[Peļņa/zaudējumi no pārdošanas]+MartsPārdošana[Peļņa/zaudējumi no pārvadājumiem]","v":{"v":0,"d":"0.00 €"}}]
[{"$f":"PārdošanasGads","v":2012},{"$nulls":10},{"$f":"IFERROR(MartsPārdošana[Pārdošanas cena]-(MartsPārdošana[Pirkuma cena]+MartsPārdošana[Interneta maksājumi]+MartsPārdošana[PayPal\nmaksājumi]+MartsPārdošana[Kredītkartes\nmaksājumi]),\"\")","v":{"v":0,"d":"0.00 €"}},{"$f":"MartsPārdošana[Piegādes izdevumi]-MartsPārdošana[Maksa par\npiegādi]","v":{"v":0,"d":"0.00 €"}},{"$f":"MartsPārdošana[Peļņa/zaudējumi no pārdošanas]+MartsPārdošana[Peļņa/zaudējumi no pārvadājumiem]","v":{"v":0,"d":"0.00 €"}}]
[{"$nulls":11},{"$f":"IFERROR(MartsPārdošana[Pārdošanas cena]-(MartsPārdošana[Pirkuma cena]+MartsPārdošana[Interneta maksājumi]+MartsPārdošana[PayPal\nmaksājumi]+MartsPārdošana[Kredītkartes\nmaksājumi]),\"\")","v":{"v":0,"d":"0.00 €"}},{"$f":"MartsPārdošana[Piegādes izdevumi]-MartsPārdošana[Maksa par\npiegādi]","v":{"v":0,"d":"0.00 €"}},{"$f":"MartsPārdošana[Peļņa/zaudējumi no pārdošanas]+MartsPārdošana[Peļņa/zaudējumi no pārvadājumiem]","v":{"v":0,"d":"0.00 €"}}]
["Kopējā peļņa/zaudējumi",{"$nulls":10},{"$f":"IFERROR(MartsPārdošana[Pārdošanas cena]-(MartsPārdošana[Pirkuma cena]+MartsPārdošana[Interneta maksājumi]+MartsPārdošana[PayPal\nmaksājumi]+MartsPārdošana[Kredītkartes\nmaksājumi]),\"\")","v":{"v":0,"d":"0.00 €"}},{"$f":"MartsPārdošana[Piegādes izdevumi]-MartsPārdošana[Maksa par\npiegādi]","v":{"v":0,"d":"0.00 €"}},{"$f":"MartsPārdošana[Peļņa/zaudējumi no pārdošanas]+MartsPārdošana[Peļņa/zaudējumi no pārvadājumiem]","v":{"v":0,"d":"0.00 €"}}]
[{"$f":"MartsPārdošana[[#Totals],[Kopējā peļņa/zaudējumi]]","v":{"v":0,"d":"0.00 €"}},{"$nulls":10},{"$f":"IFERROR(MartsPārdošana[Pārdošanas cena]-(MartsPārdošana[Pirkuma cena]+MartsPārdošana[Interneta maksājumi]+MartsPārdošana[PayPal\nmaksājumi]+MartsPārdošana[Kredītkartes\nmaksājumi]),\"\")","v":{"v":0,"d":"0.00 €"}},{"$f":"MartsPārdošana[Piegādes izdevumi]-MartsPārdošana[Maksa par\npiegādi]","v":{"v":0,"d":"0.00 €"}},{"$f":"MartsPārdošana[Peļņa/zaudējumi no pārdošanas]+MartsPārdošana[Peļņa/zaudējumi no pārvadājumiem]","v":{"v":0,"d":"0.00 €"}}]
[null,null," Kopā",{"$f":"\"Pārdotie vienumi: \"&SUBTOTAL(103,MartsPārdošana[Pozīcijas apraksts])","v":"Pārdotie vienumi: 0"},{"$f":"SUBTOTAL(109,MartsPārdošana[Pirkuma cena])","v":{"v":0,"d":"0.00 €"}},{"$f":"SUBTOTAL(109,MartsPārdošana[Pārdošanas cena])","v":{"v":0,"d":"0.00 €"}},{"$f":"SUBTOTAL(109,MartsPārdošana[Interneta maksājumi])","v":{"v":0,"d":"0.00 €"}},{"$f":"SUBTOTAL(109,MartsPārdošana[PayPal\nmaksājumi])","v":{"v":0,"d":"0.00 €"}},{"$f":"SUBTOTAL(109,MartsPārdošana[Kredītkartes\nmaksājumi])","v":{"v":0,"d":"0.00 €"}},{"$f":"SUBTOTAL(109,MartsPārdošana[Piegādes izdevumi])","v":{"v":0,"d":"0.00 €"}},{"$f":"SUBTOTAL(109,MartsPārdošana[Maksa par\npiegādi])","v":{"v":0,"d":"0.00 €"}},{"$f":"SUBTOTAL(109,MartsPārdošana[Peļņa/zaudējumi no pārdošanas])","v":{"v":0,"d":"0.00 €"}},{"$f":"SUBTOTAL(109,MartsPārdošana[Peļņa/zaudējumi no pārvadājumiem])","v":{"v":0,"d":"0.00 €"}},{"$f":"SUBTOTAL(109,MartsPārdošana[Kopējā peļņa/zaudējumi])","v":{"v":0,"d":"0.00 €"}}]
["Peļņas/zaudējumu tendence"]

{"sheet":"Aprīlis","index":3,"n_rows":9,"n_cols":14,"rows_kept":9,"merged":[[3,0,4,0],[6,0,7,0]]}
["APRĪLIS"]
["Pārdošana tiešsaistē",null,"Izsoles\nID","Pozīcijas apraksts","Pirkuma cena","Pārdošanas cena","Interneta maksājumi","PayPal\nmaksājumi","Kredītkartes\nmaksājumi","Piegādes izdevumi","Maksa par\npiegādi","Peļņa/zaudējumi no pārdošanas","Peļņa/zaudējumi no pārvadājumiem","Kopējā peļņa/zaudējumi"]
["Gads",{"$nulls":11},{"$f":"AprīlisPārdošana[Piegādes izdevumi]-AprīlisPārdošana[Maksa par\npiegādi]","v":{"v":0,"d":"0.00 €"}},{"$f":"AprīlisPārdošana[Peļņa/zaudējumi no pārdošanas]+AprīlisPārdošana[Peļņa/zaudējumi no pārvadājumiem]","v":{"v":0,"d":"0.00 €"}}]
[{"$f":"PārdošanasGads","v":2012},{"$nulls":11},{"$f":"AprīlisPārdošana[Piegādes izdevumi]-AprīlisPārdošana[Maksa par\npiegādi]","v":{"v":0,"d":"0.00 €"}},{"$f":"AprīlisPārdošana[Peļņa/zaudējumi no pārdošanas]+AprīlisPārdošana[Peļņa/zaudējumi no pārvadājumiem]","v":{"v":0,"d":"0.00 €"}}]
[{"$nulls":12},{"$f":"AprīlisPārdošana[Piegādes izdevumi]-AprīlisPārdošana[Maksa par\npiegādi]","v":{"v":0,"d":"0.00 €"}},{"$f":"AprīlisPārdošana[Peļņa/zaudējumi no pārdošanas]+AprīlisPārdošana[Peļņa/zaudējumi no pārvadājumiem]","v":{"v":0,"d":"0.00 €"}}]
["Kopējā peļņa/zaudējumi",{"$nulls":11},{"$f":"AprīlisPārdošana[Piegādes izdevumi]-AprīlisPārdošana[Maksa par\npiegādi]","v":{"v":0,"d":"0.00 €"}},{"$f":"AprīlisPārdošana[Peļņa/zaudējumi no pārdošanas]+AprīlisPārdošana[Peļņa/zaudējumi no pārvadājumiem]","v":{"v":0,"d":"0.00 €"}}]
[{"$f":"AprīlisPārdošana[[#Totals],[Kopējā peļņa/zaudējumi]]","v":{"v":0,"d":"0.00 €"}},{"$nulls":11},{"$f":"AprīlisPārdošana[Piegādes izdevumi]-AprīlisPārdošana[Maksa par\npiegādi]","v":{"v":0,"d":"0.00 €"}},{"$f":"AprīlisPārdošana[Peļņa/zaudējumi no pārdošanas]+AprīlisPārdošana[Peļņa/zaudējumi no pārvadājumiem]","v":{"v":0,"d":"0.00 €"}}]
[null,null," Kopā",{"$f":"\"Pārdotie vienumi: \"&SUBTOTAL(103,AprīlisPārdošana[Pozīcijas apraksts])","v":"Pārdotie vienumi: 0"},{"$f":"SUBTOTAL(109,AprīlisPārdošana[Pirkuma cena])","v":{"v":0,"d":"0.00 €"}},{"$f":"SUBTOTAL(109,AprīlisPārdošana[Pārdošanas cena])","v":{"v":0,"d":"0.00 €"}},{"$f":"SUBTOTAL(109,AprīlisPārdošana[Interneta maksājumi])","v":{"v":0,"d":"0.00 €"}},{"$f":"SUBTOTAL(109,AprīlisPārdošana[PayPal\nmaksājumi])","v":{"v":0,"d":"0.00 €"}},{"$f":"SUBTOTAL(109,AprīlisPārdošana[Kredītkartes\nmaksājumi])","v":{"v":0,"d":"0.00 €"}},{"$f":"SUBTOTAL(109,AprīlisPārdošana[Piegādes izdevumi])","v":{"v":0,"d":"0.00 €"}},{"$f":"SUBTOTAL(109,AprīlisPārdošana[Maksa par\npiegādi])","v":{"v":0,"d":"0.00 €"}},{"$f":"SUBTOTAL(109,AprīlisPārdošana[Peļņa/zaudējumi no pārdošanas])","v":{"v":0,"d":"0.00 €"}},{"$f":"SUBTOTAL(109,AprīlisPārdošana[Peļņa/zaudējumi no pārvadājumiem])","v":{"v":0,"d":"0.00 €"}},{"$f":"SUBTOTAL(109,AprīlisPārdošana[Kopējā peļņa/zaudējumi])","v":{"v":0,"d":"0.00 €"}}]
["Peļņas/zaudējumu tendence"]

{"sheet":"Maijs","index":4,"n_rows":9,"n_cols":14,"rows_kept":9,"merged":[[3,0,4,0],[6,0,7,0]]}
["MAIJS"]
["Pārdošana tiešsaistē",null,"Izsoles\nID","Pozīcijas apraksts","Pirkuma cena","Pārdošanas cena","Interneta maksājumi","PayPal\nmaksājumi","Kredītkartes\nmaksājumi","Piegādes izdevumi","Maksa par\npiegādi","Peļņa/zaudējumi no pārdošanas","Peļņa/zaudējumi no pārvadājumiem","Kopējā peļņa/zaudējumi"]
["Gads",{"$nulls":11},{"$f":"MaijsPārdošana[Piegādes izdevumi]-MaijsPārdošana[Maksa par\npiegādi]","v":{"v":0,"d":"0.00 €"}},{"$f":"MaijsPārdošana[Peļņa/zaudējumi no pārdošanas]+MaijsPārdošana[Peļņa/zaudējumi no pārvadājumiem]","v":{"v":0,"d":"0.00 €"}}]
[{"$f":"PārdošanasGads","v":2012},{"$nulls":11},{"$f":"MaijsPārdošana[Piegādes izdevumi]-MaijsPārdošana[Maksa par\npiegādi]","v":{"v":0,"d":"0.00 €"}},{"$f":"MaijsPārdošana[Peļņa/zaudējumi no pārdošanas]+MaijsPārdošana[Peļņa/zaudējumi no pārvadājumiem]","v":{"v":0,"d":"0.00 €"}}]
[{"$nulls":12},{"$f":"MaijsPārdošana[Piegādes izdevumi]-MaijsPārdošana[Maksa par\npiegādi]","v":{"v":0,"d":"0.00 €"}},{"$f":"MaijsPārdošana[Peļņa/zaudējumi no pārdošanas]+MaijsPārdošana[Peļņa/zaudējumi no pārvadājumiem]","v":{"v":0,"d":"0.00 €"}}]
["Kopējā peļņa/zaudējumi",{"$nulls":11},{"$f":"MaijsPārdošana[Piegādes izdevumi]-MaijsPārdošana[Maksa par\npiegādi]","v":{"v":0,"d":"0.00 €"}},{"$f":"MaijsPārdošana[Peļņa/zaudējumi no pārdošanas]+MaijsPārdošana[Peļņa/zaudējumi no pārvadājumiem]","v":{"v":0,"d":"0.00 €"}}]
[{"$f":"MaijsPārdošana[[#Totals],[Kopējā peļņa/zaudējumi]]","v":{"v":0,"d":"0.00 €"}},{"$nulls":11},{"$f":"MaijsPārdošana[Piegādes izdevumi]-MaijsPārdošana[Maksa par\npiegādi]","v":{"v":0,"d":"0.00 €"}},{"$f":"MaijsPārdošana[Peļņa/zaudējumi no pārdošanas]+MaijsPārdošana[Peļņa/zaudējumi no pārvadājumiem]","v":{"v":0,"d":"0.00 €"}}]
[null,null," Kopā",{"$f":"\"Pārdotie vienumi: \"&SUBTOTAL(103,MaijsPārdošana[Pozīcijas apraksts])","v":"Pārdotie vienumi: 0"},{"$f":"SUBTOTAL(109,MaijsPārdošana[Pirkuma cena])","v":{"v":0,"d":"0.00 €"}},{"$f":"SUBTOTAL(109,MaijsPārdošana[Pārdošanas cena])","v":{"v":0,"d":"0.00 €"}},{"$f":"SUBTOTAL(109,MaijsPārdošana[Interneta maksājumi])","v":{"v":0,"d":"0.00 €"}},{"$f":"SUBTOTAL(109,MaijsPārdošana[PayPal\nmaksājumi])","v":{"v":0,"d":"0.00 €"}},{"$f":"SUBTOTAL(109,MaijsPārdošana[Kredītkartes\nmaksājumi])","v":{"v":0,"d":"0.00 €"}},{"$f":"SUBTOTAL(109,MaijsPārdošana[Piegādes izdevumi])","v":{"v":0,"d":"0.00 €"}},{"$f":"SUBTOTAL(109,MaijsPārdošana[Maksa par\npiegādi])","v":{"v":0,"d":"0.00 €"}},{"$f":"SUBTOTAL(109,MaijsPārdošana[Peļņa/zaudējumi no pārdošanas])","v":{"v":0,"d":"0.00 €"}},{"$f":"SUBTOTAL(109,MaijsPārdošana[Peļņa/zaudējumi no pārvadājumiem])","v":{"v":0,"d":"0.00 €"}},{"$f":"SUBTOTAL(109,MaijsPārdošana[Kopējā peļņa/zaudējumi])","v":{"v":0,"d":"0.00 €"}}]
["Peļņas/zaudējumu tendence"]

{"sheet":"Jūnijs","index":5,"n_rows":9,"n_cols":14,"rows_kept":9,"merged":[[3,0,4,0],[6,0,7,0]]}
["JŪNIJS"]
["Pārdošana tiešsaistē",null,"Izsoles\nID","Pozīcijas apraksts","Pirkuma cena","Pārdošanas cena","Interneta maksājumi","PayPal\nmaksājumi","Kredītkartes\nmaksājumi","Piegādes izdevumi","Maksa par\npiegādi","Peļņa/zaudējumi no pārdošanas","Peļņa/zaudējumi no pārvadājumiem","Kopējā peļņa/zaudējumi"]
["Gads",{"$nulls":11},{"$f":"JūnijsPārdošana[Piegādes izdevumi]-JūnijsPārdošana[Maksa par\npiegādi]","v":{"v":0,"d":"0.00 €"}},{"$f":"JūnijsPārdošana[Peļņa/zaudējumi no pārdošanas]+JūnijsPārdošana[Peļņa/zaudējumi no pārvadājumiem]","v":{"v":0,"d":"0.00 €"}}]
[{"$f":"PārdošanasGads","v":2012},{"$nulls":11},{"$f":"JūnijsPārdošana[Piegādes izdevumi]-JūnijsPārdošana[Maksa par\npiegādi]","v":{"v":0,"d":"0.00 €"}},{"$f":"JūnijsPārdošana[Peļņa/zaudējumi no pārdošanas]+JūnijsPārdošana[Peļņa/zaudējumi no pārvadājumiem]","v":{"v":0,"d":"0.00 €"}}]
[{"$nulls":12},{"$f":"JūnijsPārdošana[Piegādes izdevumi]-JūnijsPārdošana[Maksa par\npiegādi]","v":{"v":0,"d":"0.00 €"}},{"$f":"JūnijsPārdošana[Peļņa/zaudējumi no pārdošanas]+JūnijsPārdošana[Peļņa/zaudējumi no pārvadājumiem]","v":{"v":0,"d":"0.00 €"}}]
["Kopējā peļņa/zaudējumi",{"$nulls":11},{"$f":"JūnijsPārdošana[Piegādes izdevumi]-JūnijsPārdošana[Maksa par\npiegādi]","v":{"v":0,"d":"0.00 €"}},{"$f":"JūnijsPārdošana[Peļņa/zaudējumi no pārdošanas]+JūnijsPārdošana[Peļņa/zaudējumi no pārvadājumiem]","v":{"v":0,"d":"0.00 €"}}]
[{"$f":"JūnijsPārdošana[[#Totals],[Kopējā peļņa/zaudējumi]]","v":{"v":0,"d":"0.00 €"}},{"$nulls":11},{"$f":"JūnijsPārdošana[Piegādes izdevumi]-JūnijsPārdošana[Maksa par\npiegādi]","v":{"v":0,"d":"0.00 €"}},{"$f":"JūnijsPārdošana[Peļņa/zaudējumi no pārdošanas]+JūnijsPārdošana[Peļņa/zaudējumi no pārvadājumiem]","v":{"v":0,"d":"0.00 €"}}]
[null,null," Kopā",{"$f":"\"Pārdotie vienumi: \"&SUBTOTAL(103,JūnijsPārdošana[Pozīcijas apraksts])","v":"Pārdotie vienumi: 0"},{"$f":"SUBTOTAL(109,JūnijsPārdošana[Pirkuma cena])","v":{"v":0,"d":"0.00 €"}},{"$f":"SUBTOTAL(109,JūnijsPārdošana[Pārdošanas cena])","v":{"v":0,"d":"0.00 €"}},{"$f":"SUBTOTAL(109,JūnijsPārdošana[Interneta maksājumi])","v":{"v":0,"d":"0.00 €"}},{"$f":"SUBTOTAL(109,JūnijsPārdošana[PayPal\nmaksājumi])","v":{"v":0,"d":"0.00 €"}},{"$f":"SUBTOTAL(109,JūnijsPārdošana[Kredītkartes\nmaksājumi])","v":{"v":0,"d":"0.00 €"}},{"$f":"SUBTOTAL(109,JūnijsPārdošana[Piegādes izdevumi])","v":{"v":0,"d":"0.00 €"}},{"$f":"SUBTOTAL(109,JūnijsPārdošana[Maksa par\npiegādi])","v":{"v":0,"d":"0.00 €"}},{"$f":"SUBTOTAL(109,JūnijsPārdošana[Peļņa/zaudējumi no pārdošanas])","v":{"v":0,"d":"0.00 €"}},{"$f":"SUBTOTAL(109,JūnijsPārdošana[Peļņa/zaudējumi no pārvadājumiem])","v":{"v":0,"d":"0.00 €"}},{"$f":"SUBTOTAL(109,JūnijsPārdošana[Kopējā peļņa/zaudējumi])","v":{"v":0,"d":"0.00 €"}}]
["Peļņas/zaudējumu tendence"]

{"sheet":"Jūlijs","index":6,"n_rows":9,"n_cols":14,"rows_kept":9,"merged":[[3,0,4,0],[6,0,7,0]]}
["JŪLIJS"]
["Pārdošana tiešsaistē",null,"Izsoles\nID","Pozīcijas apraksts","Pirkuma cena","Pārdošanas cena","Interneta maksājumi","PayPal\nmaksājumi","Kredītkartes\nmaksājumi","Piegādes izdevumi","Maksa par\npiegādi","Peļņa/zaudējumi no pārdošanas","Peļņa/zaudējumi no pārvadājumiem","Kopējā peļņa/zaudējumi"]
["Gads",{"$nulls":11},{"$f":"JūlijsPārdošana[Piegādes izdevumi]-JūlijsPārdošana[Maksa par\npiegādi]","v":{"v":0,"d":"0.00 €"}},{"$f":"JūlijsPārdošana[Peļņa/zaudējumi no pārdošanas]+JūlijsPārdošana[Peļņa/zaudējumi no pārvadājumiem]","v":{"v":0,"d":"0.00 €"}}]
[{"$f":"PārdošanasGads","v":2012},{"$nulls":11},{"$f":"JūlijsPārdošana[Piegādes izdevumi]-JūlijsPārdošana[Maksa par\npiegādi]","v":{"v":0,"d":"0.00 €"}},{"$f":"JūlijsPārdošana[Peļņa/zaudējumi no pārdošanas]+JūlijsPārdošana[Peļņa/zaudējumi no pārvadājumiem]","v":{"v":0,"d":"0.00 €"}}]
[{"$nulls":12},{"$f":"JūlijsPārdošana[Piegādes izdevumi]-JūlijsPārdošana[Maksa par\npiegādi]","v":{"v":0,"d":"0.00 €"}},{"$f":"JūlijsPārdošana[Peļņa/zaudējumi no pārdošanas]+JūlijsPārdošana[Peļņa/zaudējumi no pārvadājumiem]","v":{"v":0,"d":"0.00 €"}}]
["Kopējā peļņa/zaudējumi",{"$nulls":11},{"$f":"JūlijsPārdošana[Piegādes izdevumi]-JūlijsPārdošana[Maksa par\npiegādi]","v":{"v":0,"d":"0.00 €"}},{"$f":"JūlijsPārdošana[Peļņa/zaudējumi no pārdošanas]+JūlijsPārdošana[Peļņa/zaudējumi no pārvadājumiem]","v":{"v":0,"d":"0.00 €"}}]
[{"$f":"JūlijsPārdošana[[#Totals],[Kopējā peļņa/zaudējumi]]","v":{"v":0,"d":"0.00 €"}},{"$nulls":11},{"$f":"JūlijsPārdošana[Piegādes izdevumi]-JūlijsPārdošana[Maksa par\npiegādi]","v":{"v":0,"d":"0.00 €"}},{"$f":"JūlijsPārdošana[Peļņa/zaudējumi no pārdošanas]+JūlijsPārdošana[Peļņa/zaudējumi no pārvadājumiem]","v":{"v":0,"d":"0.00 €"}}]
[null,null," Kopā",{"$f":"\"Pārdotie vienumi: \"&SUBTOTAL(103,JūlijsPārdošana[Pozīcijas apraksts])","v":"Pārdotie vienumi: 0"},{"$f":"SUBTOTAL(109,JūlijsPārdošana[Pirkuma cena])","v":{"v":0,"d":"0.00 €"}},{"$f":"SUBTOTAL(109,JūlijsPārdošana[Pārdošanas cena])","v":{"v":0,"d":"0.00 €"}},{"$f":"SUBTOTAL(109,JūlijsPārdošana[Interneta maksājumi])","v":{"v":0,"d":"0.00 €"}},{"$f":"SUBTOTAL(109,JūlijsPārdošana[PayPal\nmaksājumi])","v":{"v":0,"d":"0.00 €"}},{"$f":"SUBTOTAL(109,JūlijsPārdošana[Kredītkartes\nmaksājumi])","v":{"v":0,"d":"0.00 €"}},{"$f":"SUBTOTAL(109,JūlijsPārdošana[Piegādes izdevumi])","v":{"v":0,"d":"0.00 €"}},{"$f":"SUBTOTAL(109,JūlijsPārdošana[Maksa par\npiegādi])","v":{"v":0,"d":"0.00 €"}},{"$f":"SUBTOTAL(109,JūlijsPārdošana[Peļņa/zaudējumi no pārdošanas])","v":{"v":0,"d":"0.00 €"}},{"$f":"SUBTOTAL(109,JūlijsPārdošana[Peļņa/zaudējumi no pārvadājumiem])","v":{"v":0,"d":"0.00 €"}},{"$f":"SUBTOTAL(109,JūlijsPārdošana[Kopējā peļņa/zaudējumi])","v":{"v":0,"d":"0.00 €"}}]
["Peļņas/zaudējumu tendence"]

{"sheet":"August","index":7,"n_rows":9,"n_cols":14,"rows_kept":9,"merged":[[3,0,4,0],[6,0,7,0]]}
["AUGUSTS"]
["Pārdošana tiešsaistē",null,"Izsoles\nID","Pozīcijas apraksts","Pirkuma cena","Pārdošanas cena","Interneta maksājumi","PayPal\nmaksājumi","Kredītkartes\nmaksājumi","Piegādes izdevumi","Maksa par\npiegādi","Peļņa/zaudējumi no pārdošanas","Peļņa/zaudējumi no pārvadājumiem","Kopējā peļņa/zaudējumi"]
["Gads",{"$nulls":11},{"$f":"AugustsPārdošana[Piegādes izdevumi]-AugustsPārdošana[Maksa par\npiegādi]","v":{"v":0,"d":"0.00 €"}},{"$f":"AugustsPārdošana[Peļņa/zaudējumi no pārdošanas]+AugustsPārdošana[Peļņa/zaudējumi no pārvadājumiem]","v":{"v":0,"d":"0.00 €"}}]
[{"$f":"PārdošanasGads","v":2012},{"$nulls":11},{"$f":"AugustsPārdošana[Piegādes izdevumi]-AugustsPārdošana[Maksa par\npiegādi]","v":{"v":0,"d":"0.00 €"}},{"$f":"AugustsPārdošana[Peļņa/zaudējumi no pārdošanas]+AugustsPārdošana[Peļņa/zaudējumi no pārvadājumiem]","v":{"v":0,"d":"0.00 €"}}]
[{"$nulls":12},{"$f":"AugustsPārdošana[Piegādes izdevumi]-AugustsPārdošana[Maksa par\npiegādi]","v":{"v":0,"d":"0.00 €"}},{"$f":"AugustsPārdošana[Peļņa/zaudējumi no pārdošanas]+AugustsPārdošana[Peļņa/zaudējumi no pārvadājumiem]","v":{"v":0,"d":"0.00 €"}}]
["Kopējā peļņa/zaudējumi",{"$nulls":11},{"$f":"AugustsPārdošana[Piegādes izdevumi]-AugustsPārdošana[Maksa par\npiegādi]","v":{"v":0,"d":"0.00 €"}},{"$f":"AugustsPārdošana[Peļņa/zaudējumi no pārdošanas]+AugustsPārdošana[Peļņa/zaudējumi no pārvadājumiem]","v":{"v":0,"d":"0.00 €"}}]
[{"$f":"AugustsPārdošana[[#Totals],[Kopējā peļņa/zaudējumi]]","v":{"v":0,"d":"0.00 €"}},{"$nulls":11},{"$f":"AugustsPārdošana[Piegādes izdevumi]-AugustsPārdošana[Maksa par\npiegādi]","v":{"v":0,"d":"0.00 €"}},{"$f":"AugustsPārdošana[Peļņa/zaudējumi no pārdošanas]+AugustsPārdošana[Peļņa/zaudējumi no pārvadājumiem]","v":{"v":0,"d":"0.00 €"}}]
[null,null," Kopā",{"$f":"\"Pārdotie vienumi: \"&SUBTOTAL(103,AugustsPārdošana[Pozīcijas apraksts])","v":"Pārdotie vienumi: 0"},{"$f":"SUBTOTAL(109,AugustsPārdošana[Pirkuma cena])","v":{"v":0,"d":"0.00 €"}},{"$f":"SUBTOTAL(109,AugustsPārdošana[Pārdošanas cena])","v":{"v":0,"d":"0.00 €"}},{"$f":"SUBTOTAL(109,AugustsPārdošana[Interneta maksājumi])","v":{"v":0,"d":"0.00 €"}},{"$f":"SUBTOTAL(109,AugustsPārdošana[PayPal\nmaksājumi])","v":{"v":0,"d":"0.00 €"}},{"$f":"SUBTOTAL(109,AugustsPārdošana[Kredītkartes\nmaksājumi])","v":{"v":0,"d":"0.00 €"}},{"$f":"SUBTOTAL(109,AugustsPārdošana[Piegādes izdevumi])","v":{"v":0,"d":"0.00 €"}},{"$f":"SUBTOTAL(109,AugustsPārdošana[Maksa par\npiegādi])","v":{"v":0,"d":"0.00 €"}},{"$f":"SUBTOTAL(109,AugustsPārdošana[Peļņa/zaudējumi no pārdošanas])","v":{"v":0,"d":"0.00 €"}},{"$f":"SUBTOTAL(109,AugustsPārdošana[Peļņa/zaudējumi no pārvadājumiem])","v":{"v":0,"d":"0.00 €"}},{"$f":"SUBTOTAL(109,AugustsPārdošana[Kopējā peļņa/zaudējumi])","v":{"v":0,"d":"0.00 €"}}]
["Peļņas/zaudējumu tendence"]

{"sheet":"Septembris","index":8,"n_rows":9,"n_cols":14,"rows_kept":9,"merged":[[3,0,4,0],[6,0,7,0]]}
["SEPTEMBRIS"]
["Pārdošana tiešsaistē",null,"Izsoles\nID","Pozīcijas apraksts","Pirkuma cena","Pārdošanas cena","Interneta maksājumi","PayPal\nmaksājumi","Kredītkartes\nmaksājumi","Piegādes izdevumi","Maksa par\npiegādi","Peļņa/zaudējumi no pārdošanas","Peļņa/zaudējumi no pārvadājumiem","Kopējā peļņa/zaudējumi"]
["Gads",{"$nulls":11},{"$f":"SeptembrisPārdošana[Piegādes izdevumi]-SeptembrisPārdošana[Maksa par\npiegādi]","v":{"v":0,"d":"0.00 €"}},{"$f":"SeptembrisPārdošana[Peļņa/zaudējumi no pārdošanas]+SeptembrisPārdošana[Peļņa/zaudējumi no pārvadājumiem]","v":{"v":0,"d":"0.00 €"}}]
[{"$f":"PārdošanasGads","v":2012},{"$nulls":11},{"$f":"SeptembrisPārdošana[Piegādes izdevumi]-SeptembrisPārdošana[Maksa par\npiegādi]","v":{"v":0,"d":"0.00 €"}},{"$f":"SeptembrisPārdošana[Peļņa/zaudējumi no pārdošanas]+SeptembrisPārdošana[Peļņa/zaudējumi no pārvadājumiem]","v":{"v":0,"d":"0.00 €"}}]
[{"$nulls":12},{"$f":"SeptembrisPārdošana[Piegādes izdevumi]-SeptembrisPārdošana[Maksa par\npiegādi]","v":{"v":0,"d":"0.00 €"}},{"$f":"SeptembrisPārdošana[Peļņa/zaudējumi no pārdošanas]+SeptembrisPārdošana[Peļņa/zaudējumi no pārvadājumiem]","v":{"v":0,"d":"0.00 €"}}]
["Kopējā peļņa/zaudējumi",{"$nulls":11},{"$f":"SeptembrisPārdošana[Piegādes izdevumi]-SeptembrisPārdošana[Maksa par\npiegādi]","v":{"v":0,"d":"0.00 €"}},{"$f":"SeptembrisPārdošana[Peļņa/zaudējumi no pārdošanas]+SeptembrisPārdošana[Peļņa/zaudējumi no pārvadājumiem]","v":{"v":0,"d":"0.00 €"}}]
[{"$f":"SeptembrisPārdošana[[#Totals],[Kopējā peļņa/zaudējumi]]","v":{"v":0,"d":"0.00 €"}},{"$nulls":11},{"$f":"SeptembrisPārdošana[Piegādes izdevumi]-SeptembrisPārdošana[Maksa par\npiegādi]","v":{"v":0,"d":"0.00 €"}},{"$f":"SeptembrisPārdošana[Peļņa/zaudējumi no pārdošanas]+SeptembrisPārdošana[Peļņa/zaudējumi no pārvadājumiem]","v":{"v":0,"d":"0.00 €"}}]
[null,null," Kopā",{"$f":"\"Pārdotie vienumi: \"&SUBTOTAL(103,SeptembrisPārdošana[Pozīcijas apraksts])","v":"Pārdotie vienumi: 0"},{"$f":"SUBTOTAL(109,SeptembrisPārdošana[Pirkuma cena])","v":{"v":0,"d":"0.00 €"}},{"$f":"SUBTOTAL(109,SeptembrisPārdošana[Pārdošanas cena])","v":{"v":0,"d":"0.00 €"}},{"$f":"SUBTOTAL(109,SeptembrisPārdošana[Interneta maksājumi])","v":{"v":0,"d":"0.00 €"}},{"$f":"SUBTOTAL(109,SeptembrisPārdošana[PayPal\nmaksājumi])","v":{"v":0,"d":"0.00 €"}},{"$f":"SUBTOTAL(109,SeptembrisPārdošana[Kredītkartes\nmaksājumi])","v":{"v":0,"d":"0.00 €"}},{"$f":"SUBTOTAL(109,SeptembrisPārdošana[Piegādes izdevumi])","v":{"v":0,"d":"0.00 €"}},{"$f":"SUBTOTAL(109,SeptembrisPārdošana[Maksa par\npiegādi])","v":{"v":0,"d":"0.00 €"}},{"$f":"SUBTOTAL(109,SeptembrisPārdošana[Peļņa/zaudējumi no pārdošanas])","v":{"v":0,"d":"0.00 €"}},{"$f":"SUBTOTAL(109,SeptembrisPārdošana[Peļņa/zaudējumi no pārvadājumiem])","v":{"v":0,"d":"0.00 €"}},{"$f":"SUBTOTAL(109,SeptembrisPārdošana[Kopējā peļņa/zaudējumi])","v":{"v":0,"d":"0.00 €"}}]
["Peļņas/zaudējumu tendence"]

{"sheet":"Oktobris","index":9,"n_rows":9,"n_cols":14,"rows_kept":9,"merged":[[3,0,4,0],[6,0,7,0]]}
["OKTOBRIS"]
["Pārdošana tiešsaistē",null,"Izsoles\nID","Pozīcijas apraksts","Pirkuma cena","Pārdošanas cena","Interneta maksājumi","PayPal\nmaksājumi","Kredītkartes\nmaksājumi","Piegādes izdevumi","Maksa par\npiegādi","Peļņa/zaudējumi no pārdošanas","Peļņa/zaudējumi no pārvadājumiem","Kopējā peļņa/zaudējumi"]
["Gads",{"$nulls":11},{"$f":"OktobrisPārdošana[Piegādes izdevumi]-OktobrisPārdošana[Maksa par\npiegādi]","v":{"v":0,"d":"0.00 €"}},{"$f":"OktobrisPārdošana[Peļņa/zaudējumi no pārdošanas]+OktobrisPārdošana[Peļņa/zaudējumi no pārvadājumiem]","v":{"v":0,"d":"0.00 €"}}]
[{"$f":"PārdošanasGads","v":2012},{"$nulls":11},{"$f":"OktobrisPārdošana[Piegādes izdevumi]-OktobrisPārdošana[Maksa par\npiegādi]","v":{"v":0,"d":"0.00 €"}},{"$f":"OktobrisPārdošana[Peļņa/zaudējumi no pārdošanas]+OktobrisPārdošana[Peļņa/zaudējumi no pārvadājumiem]","v":{"v":0,"d":"0.00 €"}}]
[{"$nulls":12},{"$f":"OktobrisPārdošana[Piegādes izdevumi]-OktobrisPārdošana[Maksa par\npiegādi]","v":{"v":0,"d":"0.00 €"}},{"$f":"OktobrisPārdošana[Peļņa/zaudējumi no pārdošanas]+OktobrisPārdošana[Peļņa/zaudējumi no pārvadājumiem]","v":{"v":0,"d":"0.00 €"}}]
["Kopējā peļņa/zaudējumi",{"$nulls":11},{"$f":"OktobrisPārdošana[Piegādes izdevumi]-OktobrisPārdošana[Maksa par\npiegādi]","v":{"v":0,"d":"0.00 €"}},{"$f":"OktobrisPārdošana[Peļņa/zaudējumi no pārdošanas]+OktobrisPārdošana[Peļņa/zaudējumi no pārvadājumiem]","v":{"v":0,"d":"0.00 €"}}]
[{"$f":"OktobrisPārdošana[[#Totals],[Kopējā peļņa/zaudējumi]]","v":{"v":0,"d":"0.00 €"}},{"$nulls":11},{"$f":"OktobrisPārdošana[Piegādes izdevumi]-OktobrisPārdošana[Maksa par\npiegādi]","v":{"v":0,"d":"0.00 €"}},{"$f":"OktobrisPārdošana[Peļņa/zaudējumi no pārdošanas]+OktobrisPārdošana[Peļņa/zaudējumi no pārvadājumiem]","v":{"v":0,"d":"0.00 €"}}]
[null,null," Kopā",{"$f":"\"Pārdotie vienumi: \"&SUBTOTAL(103,OktobrisPārdošana[Pozīcijas apraksts])","v":"Pārdotie vienumi: 0"},{"$f":"SUBTOTAL(109,OktobrisPārdošana[Pirkuma cena])","v":{"v":0,"d":"0.00 €"}},{"$f":"SUBTOTAL(109,OktobrisPārdošana[Pārdošanas cena])","v":{"v":0,"d":"0.00 €"}},{"$f":"SUBTOTAL(109,OktobrisPārdošana[Interneta maksājumi])","v":{"v":0,"d":"0.00 €"}},{"$f":"SUBTOTAL(109,OktobrisPārdošana[PayPal\nmaksājumi])","v":{"v":0,"d":"0.00 €"}},{"$f":"SUBTOTAL(109,OktobrisPārdošana[Kredītkartes\nmaksājumi])","v":{"v":0,"d":"0.00 €"}},{"$f":"SUBTOTAL(109,OktobrisPārdošana[Piegādes izdevumi])","v":{"v":0,"d":"0.00 €"}},{"$f":"SUBTOTAL(109,OktobrisPārdošana[Maksa par\npiegādi])","v":{"v":0,"d":"0.00 €"}},{"$f":"SUBTOTAL(109,OktobrisPārdošana[Peļņa/zaudējumi no pārdošanas])","v":{"v":0,"d":"0.00 €"}},{"$f":"SUBTOTAL(109,OktobrisPārdošana[Peļņa/zaudējumi no pārvadājumiem])","v":{"v":0,"d":"0.00 €"}},{"$f":"SUBTOTAL(109,OktobrisPārdošana[Kopējā peļņa/zaudējumi])","v":{"v":0,"d":"0.00 €"}}]
["Peļņas/zaudējumu tendence"]

{"sheet":"Novembris","index":10,"n_rows":9,"n_cols":14,"rows_kept":9,"merged":[[3,0,4,0],[6,0,7,0]]}
["NOVEMBRIS"]
["Pārdošana tiešsaistē",null,"Izsoles\nID","Pozīcijas apraksts","Pirkuma cena","Pārdošanas cena","Interneta maksājumi","PayPal\nmaksājumi","Kredītkartes\nmaksājumi","Piegādes izdevumi","Maksa par\npiegādi","Peļņa/zaudējumi no pārdošanas","Peļņa/zaudējumi no pārvadājumiem","Kopējā peļņa/zaudējumi"]
["Gads",{"$nulls":11},{"$f":"NovembrisPārdošana[Piegādes izdevumi]-NovembrisPārdošana[Maksa par\npiegādi]","v":{"v":0,"d":"0.00 €"}},{"$f":"NovembrisPārdošana[Peļņa/zaudējumi no pārdošanas]+NovembrisPārdošana[Peļņa/zaudējumi no pārvadājumiem]","v":{"v":0,"d":"0.00 €"}}]
[{"$f":"PārdošanasGads","v":2012},{"$nulls":11},{"$f":"NovembrisPārdošana[Piegādes izdevumi]-NovembrisPārdošana[Maksa par\npiegādi]","v":{"v":0,"d":"0.00 €"}},{"$f":"NovembrisPārdošana[Peļņa/zaudējumi no pārdošanas]+NovembrisPārdošana[Peļņa/zaudējumi no pārvadājumiem]","v":{"v":0,"d":"0.00 €"}}]
[{"$nulls":12},{"$f":"NovembrisPārdošana[Piegādes izdevumi]-NovembrisPārdošana[Maksa par\npiegādi]","v":{"v":0,"d":"0.00 €"}},{"$f":"NovembrisPārdošana[Peļņa/zaudējumi no pārdošanas]+NovembrisPārdošana[Peļņa/zaudējumi no pārvadājumiem]","v":{"v":0,"d":"0.00 €"}}]
["Kopējā peļņa/zaudējumi",{"$nulls":11},{"$f":"NovembrisPārdošana[Piegādes izdevumi]-NovembrisPārdošana[Maksa par\npiegādi]","v":{"v":0,"d":"0.00 €"}},{"$f":"NovembrisPārdošana[Peļņa/zaudējumi no pārdošanas]+NovembrisPārdošana[Peļņa/zaudējumi no pārvadājumiem]","v":{"v":0,"d":"0.00 €"}}]
[{"$f":"NovembrisPārdošana[[#Totals],[Kopējā peļņa/zaudējumi]]","v":{"v":0,"d":"0.00 €"}},{"$nulls":11},{"$f":"NovembrisPārdošana[Piegādes izdevumi]-NovembrisPārdošana[Maksa par\npiegādi]","v":{"v":0,"d":"0.00 €"}},{"$f":"NovembrisPārdošana[Peļņa/zaudējumi no pārdošanas]+NovembrisPārdošana[Peļņa/zaudējumi no pārvadājumiem]","v":{"v":0,"d":"0.00 €"}}]
[null,null," Kopā",{"$f":"\"Pārdotie vienumi: \"&SUBTOTAL(103,NovembrisPārdošana[Pozīcijas apraksts])","v":"Pārdotie vienumi: 0"},{"$f":"SUBTOTAL(109,NovembrisPārdošana[Pirkuma cena])","v":{"v":0,"d":"0.00 €"}},{"$f":"SUBTOTAL(109,NovembrisPārdošana[Pārdošanas cena])","v":{"v":0,"d":"0.00 €"}},{"$f":"SUBTOTAL(109,NovembrisPārdošana[Interneta maksājumi])","v":{"v":0,"d":"0.00 €"}},{"$f":"SUBTOTAL(109,NovembrisPārdošana[PayPal\nmaksājumi])","v":{"v":0,"d":"0.00 €"}},{"$f":"SUBTOTAL(109,NovembrisPārdošana[Kredītkartes\nmaksājumi])","v":{"v":0,"d":"0.00 €"}},{"$f":"SUBTOTAL(109,NovembrisPārdošana[Piegādes izdevumi])","v":{"v":0,"d":"0.00 €"}},{"$f":"SUBTOTAL(109,NovembrisPārdošana[Maksa par\npiegādi])","v":{"v":0,"d":"0.00 €"}},{"$f":"SUBTOTAL(109,NovembrisPārdošana[Peļņa/zaudējumi no pārdošanas])","v":{"v":0,"d":"0.00 €"}},{"$f":"SUBTOTAL(109,NovembrisPārdošana[Peļņa/zaudējumi no pārvadājumiem])","v":{"v":0,"d":"0.00 €"}},{"$f":"SUBTOTAL(109,NovembrisPārdošana[Kopējā peļņa/zaudējumi])","v":{"v":0,"d":"0.00 €"}}]
["Peļņas/zaudējumu tendence"]

{"sheet":"Decembris","index":11,"n_rows":9,"n_cols":14,"rows_kept":9,"merged":[[3,0,4,0],[6,0,7,0]]}
["DECEMBRIS"]
["Pārdošana tiešsaistē",null,"Izsoles\nID","Pozīcijas apraksts","Pirkuma cena","Pārdošanas cena","Interneta maksājumi","PayPal\nmaksājumi","Kredītkartes\nmaksājumi","Piegādes izdevumi","Maksa par\npiegādi","Peļņa/zaudējumi no pārdošanas","Peļņa/zaudējumi no pārvadājumiem","Kopējā peļņa/zaudējumi"]
["Gads",{"$nulls":11},{"$f":"DecembrisPārdošana[Piegādes izdevumi]-DecembrisPārdošana[Maksa par\npiegādi]","v":{"v":0,"d":"0.00 €"}},{"$f":"DecembrisPārdošana[Peļņa/zaudējumi no pārdošanas]+DecembrisPārdošana[Peļņa/zaudējumi no pārvadājumiem]","v":{"v":0,"d":"0.00 €"}}]
[{"$f":"PārdošanasGads","v":2012},{"$nulls":11},{"$f":"DecembrisPārdošana[Piegādes izdevumi]-DecembrisPārdošana[Maksa par\npiegādi]","v":{"v":0,"d":"0.00 €"}},{"$f":"DecembrisPārdošana[Peļņa/zaudējumi no pārdošanas]+DecembrisPārdošana[Peļņa/zaudējumi no pārvadājumiem]","v":{"v":0,"d":"0.00 €"}}]
[{"$nulls":12},{"$f":"DecembrisPārdošana[Piegādes izdevumi]-DecembrisPārdošana[Maksa par\npiegādi]","v":{"v":0,"d":"0.00 €"}},{"$f":"DecembrisPārdošana[Peļņa/zaudējumi no pārdošanas]+DecembrisPārdošana[Peļņa/zaudējumi no pārvadājumiem]","v":{"v":0,"d":"0.00 €"}}]
["Kopējā peļņa/zaudējumi",{"$nulls":11},{"$f":"DecembrisPārdošana[Piegādes izdevumi]-DecembrisPārdošana[Maksa par\npiegādi]","v":{"v":0,"d":"0.00 €"}},{"$f":"DecembrisPārdošana[Peļņa/zaudējumi no pārdošanas]+DecembrisPārdošana[Peļņa/zaudējumi no pārvadājumiem]","v":{"v":0,"d":"0.00 €"}}]
[{"$f":"DecembrisPārdošana[[#Totals],[Kopējā peļņa/zaudējumi]]","v":{"v":0,"d":"0.00 €"}},{"$nulls":11},{"$f":"DecembrisPārdošana[Piegādes izdevumi]-DecembrisPārdošana[Maksa par\npiegādi]","v":{"v":0,"d":"0.00 €"}},{"$f":"DecembrisPārdošana[Peļņa/zaudējumi no pārdošanas]+DecembrisPārdošana[Peļņa/zaudējumi no pārvadājumiem]","v":{"v":0,"d":"0.00 €"}}]
[null,null," Kopā",{"$f":"\"Pārdotie vienumi: \"&SUBTOTAL(103,DecembrisPārdošana[Pozīcijas apraksts])","v":"Pārdotie vienumi: 0"},{"$f":"SUBTOTAL(109,DecembrisPārdošana[Pirkuma cena])","v":{"v":0,"d":"0.00 €"}},{"$f":"SUBTOTAL(109,DecembrisPārdošana[Pārdošanas cena])","v":{"v":0,"d":"0.00 €"}},{"$f":"SUBTOTAL(109,DecembrisPārdošana[Interneta maksājumi])","v":{"v":0,"d":"0.00 €"}},{"$f":"SUBTOTAL(109,DecembrisPārdošana[PayPal\nmaksājumi])","v":{"v":0,"d":"0.00 €"}},{"$f":"SUBTOTAL(109,DecembrisPārdošana[Kredītkartes\nmaksājumi])","v":{"v":0,"d":"0.00 €"}},{"$f":"SUBTOTAL(109,DecembrisPārdošana[Piegādes izdevumi])","v":{"v":0,"d":"0.00 €"}},{"$f":"SUBTOTAL(109,DecembrisPārdošana[Maksa par\npiegādi])","v":{"v":0,"d":"0.00 €"}},{"$f":"SUBTOTAL(109,DecembrisPārdošana[Peļņa/zaudējumi no pārdošanas])","v":{"v":0,"d":"0.00 €"}},{"$f":"SUBTOTAL(109,DecembrisPārdošana[Peļņa/zaudējumi no pārvadājumiem])","v":{"v":0,"d":"0.00 €"}},{"$f":"SUBTOTAL(109,DecembrisPārdošana[Kopējā peļņa/zaudējumi])","v":{"v":0,"d":"0.00 €"}}]
["Peļņas/zaudējumu tendence"]

{"sheet":"Kopsavilkums no gada sākuma","index":12,"n_rows":16,"n_cols":11,"rows_kept":16,"merged":[[3,0,4,0],[6,0,7,0]]}
["NGS"]
["Kopsavilkums",null,"Peļņa/zaudējumi",{"$nulls":4},"Peļņa/zaudējumi no gada sākuma"]
["Gads",{"$nulls":6},"Mēnesis","Peļņa/zaudējumi no pārdošanas","Peļņa/zaudējumi no pārvadājumiem","Kopējā peļņa/zaudējumi"]
[{"$f":"PārdošanasGads","v":2012},{"$nulls":6},"Janvāris",{"$f":"JanvārisPārdošana[[#Totals],[Peļņa/zaudējumi no pārdošanas]]","v":{"v":79.5,"d":"79.50 €"}},{"$f":"JanvārisPārdošana[[#Totals],[Peļņa/zaudējumi no pārvadājumiem]]","v":{"v":9.5,"d":"9.50 €"}},{"$f":"IF(AND(KopsavilkumsNGS[[#This Row],[Peļņa/zaudējumi no pārdošanas]]<>\"\",KopsavilkumsNGS[[#This Row],[Peļņa/zaudējumi no pārvadājumiem]]<>\"\"),KopsavilkumsNGS[[#This Row],[Peļņa/zaudējumi no pārdošanas]]+KopsavilkumsNGS[[#This Row],[Peļņa/zaudējumi no pārvadājumiem]],\"\")","v":{"v":89,"d":"89.00 €"}}]
[{"$nulls":7},"Februāris",{"$f":"FebruārisPārdošana[[#Totals],[Peļņa/zaudējumi no pārdošanas]]","v":{"v":212.3,"d":"212.30 €"}},{"$f":"FebruārisPārdošana[[#Totals],[Peļņa/zaudējumi no pārvadājumiem]]","v":{"v":12.3,"d":"12.30 €"}},{"$f":"IF(AND(KopsavilkumsNGS[[#This Row],[Peļņa/zaudējumi no pārdošanas]]<>\"\",KopsavilkumsNGS[[#This Row],[Peļņa/zaudējumi no pārvadājumiem]]<>\"\"),KopsavilkumsNGS[[#This Row],[Peļņa/zaudējumi no pārdošanas]]+KopsavilkumsNGS[[#This Row],[Peļņa/zaudējumi no pārvadājumiem]],\"\")","v":{"v":224.60000000000002,"d":"224.60 €"}}]
["Mēneša pārdošanas tendence:",{"$nulls":6},"Marts",{"$f":"MartsPārdošana[[#Totals],[Peļņa/zaudējumi no pārdošanas]]","v":{"v":0,"d":"0.00 €"}},{"$f":"MartsPārdošana[[#Totals],[Peļņa/zaudējumi no pārvadājumiem]]","v":{"v":0,"d":"0.00 €"}},{"$f":"IF(AND(KopsavilkumsNGS[[#This Row],[Peļņa/zaudējumi no pārdošanas]]<>\"\",KopsavilkumsNGS[[#This Row],[Peļņa/zaudējumi no pārvadājumiem]]<>\"\"),KopsavilkumsNGS[[#This Row],[Peļņa/zaudējumi no pārdošanas]]+KopsavilkumsNGS[[#This Row],[Peļņa/zaudējumi no pārvadājumiem]],\"\")","v":{"v":0,"d":"0.00 €"}}]
[{"$nulls":7},"Aprīlis",{"$f":"AprīlisPārdošana[[#Totals],[Peļņa/zaudējumi no pārdošanas]]","v":{"v":0,"d":"0.00 €"}},{"$f":"AprīlisPārdošana[[#Totals],[Peļņa/zaudējumi no pārvadājumiem]]","v":{"v":0,"d":"0.00 €"}},{"$f":"IF(AND(KopsavilkumsNGS[[#This Row],[Peļņa/zaudējumi no pārdošanas]]<>\"\",KopsavilkumsNGS[[#This Row],[Peļņa/zaudējumi no pārvadājumiem]]<>\"\"),KopsavilkumsNGS[[#This Row],[Peļņa/zaudējumi no pārdošanas]]+KopsavilkumsNGS[[#This Row],[Peļņa/zaudējumi no pārvadājumiem]],\"\")","v":{"v":0,"d":"0.00 €"}}]
[{"$nulls":7},"Maijs",{"$f":"MaijsPārdošana[[#Totals],[Peļņa/zaudējumi no pārdošanas]]","v":{"v":0,"d":"0.00 €"}},{"$f":"MaijsPārdošana[[#Totals],[Peļņa/zaudējumi no pārvadājumiem]]","v":{"v":0,"d":"0.00 €"}},{"$f":"IF(AND(KopsavilkumsNGS[[#This Row],[Peļņa/zaudējumi no pārdošanas]]<>\"\",KopsavilkumsNGS[[#This Row],[Peļņa/zaudējumi no pārvadājumiem]]<>\"\"),KopsavilkumsNGS[[#This Row],[Peļņa/zaudējumi no pārdošanas]]+KopsavilkumsNGS[[#This Row],[Peļņa/zaudējumi no pārvadājumiem]],\"\")","v":{"v":0,"d":"0.00 €"}}]
[{"$nulls":7},"Jūnijs",{"$f":"JūnijsPārdošana[[#Totals],[Peļņa/zaudējumi no pārdošanas]]","v":{"v":0,"d":"0.00 €"}},{"$f":"JūnijsPārdošana[[#Totals],[Peļņa/zaudējumi no pārvadājumiem]]","v":{"v":0,"d":"0.00 €"}},{"$f":"IF(AND(KopsavilkumsNGS[[#This Row],[Peļņa/zaudējumi no pārdošanas]]<>\"\",KopsavilkumsNGS[[#This Row],[Peļņa/zaudējumi no pārvadājumiem]]<>\"\"),KopsavilkumsNGS[[#This Row],[Peļņa/zaudējumi no pārdošanas]]+KopsavilkumsNGS[[#This Row],[Peļņa/zaudējumi no pārvadājumiem]],\"\")","v":{"v":0,"d":"0.00 €"}}]
[{"$nulls":7},"Jūlijs",{"$f":"JūlijsPārdošana[[#Totals],[Peļņa/zaudējumi no pārdošanas]]","v":{"v":0,"d":"0.00 €"}},{"$f":"JūlijsPārdošana[[#Totals],[Peļņa/zaudējumi no pārvadājumiem]]","v":{"v":0,"d":"0.00 €"}},{"$f":"IF(AND(KopsavilkumsNGS[[#This Row],[Peļņa/zaudējumi no pārdošanas]]<>\"\",KopsavilkumsNGS[[#This Row],[Peļņa/zaudējumi no pārvadājumiem]]<>\"\"),KopsavilkumsNGS[[#This Row],[Peļņa/zaudējumi no pārdošanas]]+KopsavilkumsNGS[[#This Row],[Peļņa/zaudējumi no pārvadājumiem]],\"\")","v":{"v":0,"d":"0.00 €"}}]
[{"$nulls":7},"Augusts",{"$f":"AugustsPārdošana[[#Totals],[Peļņa/zaudējumi no pārdošanas]]","v":{"v":0,"d":"0.00 €"}},{"$f":"AugustsPārdošana[[#Totals],[Peļņa/zaudējumi no pārvadājumiem]]","v":{"v":0,"d":"0.00 €"}},{"$f":"IF(AND(KopsavilkumsNGS[[#This Row],[Peļņa/zaudējumi no pārdošanas]]<>\"\",KopsavilkumsNGS[[#This Row],[Peļņa/zaudējumi no pārvadājumiem]]<>\"\"),KopsavilkumsNGS[[#This Row],[Peļņa/zaudējumi no pārdošanas]]+KopsavilkumsNGS[[#This Row],[Peļņa/zaudējumi no pārvadājumiem]],\"\")","v":{"v":0,"d":"0.00 €"}}]
[{"$nulls":7},"Septembris",{"$f":"SeptembrisPārdošana[[#Totals],[Peļņa/zaudējumi no pārdošanas]]","v":{"v":0,"d":"0.00 €"}},{"$f":"SeptembrisPārdošana[[#Totals],[Peļņa/zaudējumi no pārvadājumiem]]","v":{"v":0,"d":"0.00 €"}},{"$f":"IF(AND(KopsavilkumsNGS[[#This Row],[Peļņa/zaudējumi no pārdošanas]]<>\"\",KopsavilkumsNGS[[#This Row],[Peļņa/zaudējumi no pārvadājumiem]]<>\"\"),KopsavilkumsNGS[[#This Row],[Peļņa/zaudējumi no pārdošanas]]+KopsavilkumsNGS[[#This Row],[Peļņa/zaudējumi no pārvadājumiem]],\"\")","v":{"v":0,"d":"0.00 €"}}]
[{"$nulls":7},"Oktobris",{"$f":"OktobrisPārdošana[[#Totals],[Peļņa/zaudējumi no pārdošanas]]","v":{"v":0,"d":"0.00 €"}},{"$f":"OktobrisPārdošana[[#Totals],[Peļņa/zaudējumi no pārvadājumiem]]","v":{"v":0,"d":"0.00 €"}},{"$f":"IF(AND(KopsavilkumsNGS[[#This Row],[Peļņa/zaudējumi no pārdošanas]]<>\"\",KopsavilkumsNGS[[#This Row],[Peļņa/zaudējumi no pārvadājumiem]]<>\"\"),KopsavilkumsNGS[[#This Row],[Peļņa/zaudējumi no pārdošanas]]+KopsavilkumsNGS[[#This Row],[Peļņa/zaudējumi no pārvadājumiem]],\"\")","v":{"v":0,"d":"0.00 €"}}]
[{"$nulls":7},"Novembris",{"$f":"NovembrisPārdošana[[#Totals],[Peļņa/zaudējumi no pārdošanas]]","v":{"v":0,"d":"0.00 €"}},{"$f":"NovembrisPārdošana[[#Totals],[Peļņa/zaudējumi no pārvadājumiem]]","v":{"v":0,"d":"0.00 €"}},{"$f":"IF(AND(KopsavilkumsNGS[[#This Row],[Peļņa/zaudējumi no pārdošanas]]<>\"\",KopsavilkumsNGS[[#This Row],[Peļņa/zaudējumi no pārvadājumiem]]<>\"\"),KopsavilkumsNGS[[#This Row],[Peļņa/zaudējumi no pārdošanas]]+KopsavilkumsNGS[[#This Row],[Peļņa/zaudējumi no pārvadājumiem]],\"\")","v":{"v":0,"d":"0.00 €"}}]
[{"$nulls":7},"Decembris",{"$f":"DecembrisPārdošana[[#Totals],[Peļņa/zaudējumi no pārdošanas]]","v":{"v":0,"d":"0.00 €"}},{"$f":"DecembrisPārdošana[[#Totals],[Peļņa/zaudējumi no pārvadājumiem]]","v":{"v":0,"d":"0.00 €"}},{"$f":"IF(AND(KopsavilkumsNGS[[#This Row],[Peļņa/zaudējumi no pārdošanas]]<>\"\",KopsavilkumsNGS[[#This Row],[Peļņa/zaudējumi no pārvadājumiem]]<>\"\"),KopsavilkumsNGS[[#This Row],[Peļņa/zaudējumi no pārdošanas]]+KopsavilkumsNGS[[#This Row],[Peļņa/zaudējumi no pārvadājumiem]],\"\")","v":{"v":0,"d":"0.00 €"}}]
[{"$nulls":7},"Kopā",{"$f":"SUBTOTAL(109,KopsavilkumsNGS[Peļņa/zaudējumi no pārdošanas])","v":{"v":291.8,"d":"291.80 €"}},{"$f":"SUBTOTAL(109,KopsavilkumsNGS[Peļņa/zaudējumi no pārvadājumiem])","v":{"v":21.8,"d":"21.80 €"}},{"$f":"SUBTOTAL(109,KopsavilkumsNGS[Kopējā peļņa/zaudējumi])","v":{"v":313.6,"d":"313.60 €"}}]